[Event "*** Titled Tuesday Blitz"]
[Site "Chess.com"]
[Date "2020.02.04"]
[Round "8"]
[White "Barcelona_Guy"]
[Black "GMKrikor"]
[Result "0-1"]
[WhiteElo "2637"]
[BlackElo "2807"]
[TimeControl "180+2"]
[EndTime "14:53:59 PST"]
[Termination "GMKrikor won by resignation"]

1. e4 {[%clk 0:03:01.5]} 1... c5 {[%clk 0:03:01.1]} 2. Nf3 {[%clk 0:03:03]} 2...
g6 {[%clk 0:02:59.8]} 3. d4 {[%clk 0:03:03.5]} 3... cxd4 {[%clk 0:03:01.7]} 4.
c3 {[%clk 0:03:05.1]} 4... d5 {[%clk 0:02:55.9]} 5. exd5 {[%clk 0:03:05.4]} 5...
Qxd5 {[%clk 0:02:56]} 6. cxd4 {[%clk 0:03:01.6]} 6... Bg7 {[%clk 0:02:57.2]} 7.
Nc3 {[%clk 0:03:02.8]} 7... Qd8 {[%clk 0:02:57.4]} 8. Bc4 {[%clk 0:03:01.2]}
8... Nf6 {[%clk 0:02:58.7]} 9. O-O {[%clk 0:03:02.7]} 9... O-O {[%clk
0:03:00.2]} 10. h3 {[%clk 0:03:04.2]} 10... Nc6 {[%clk 0:02:57]} 11. Re1 {[%clk
0:03:05.6]} 11... Na5 {[%clk 0:02:58.2]} 12. Bf1 {[%clk 0:03:00.7]} 12... Be6
{[%clk 0:02:58.3]} 13. Ne5 {[%clk 0:02:44.8]} 13... Rc8 {[%clk 0:02:54.5]} 14.
Qa4 {[%clk 0:02:41.1]} 14... a6 {[%clk 0:02:50.5]} 15. Bd2 {[%clk 0:02:32.1]}
15... Nc6 {[%clk 0:02:44.9]} 16. Nxc6 {[%clk 0:01:52.2]} 16... Rxc6 {[%clk
0:02:45.4]} 17. Rad1 {[%clk 0:01:52.8]} 17... Nd5 {[%clk 0:02:44.6]} 18. Bg5
{[%clk 0:01:38.8]} 18... Rxc3 {[%clk 0:01:40.2]} 19. bxc3 {[%clk 0:01:39.2]}
19... Nxc3 {[%clk 0:01:42.1]} 20. Qb4 {[%clk 0:01:33.5]} 20... Nxd1 {[%clk
0:01:43.4]} 21. Bxe7 {[%clk 0:01:34.4]} 21... Qxd4 {[%clk 0:01:44.7]} 22. Qxd4
{[%clk 0:01:00.5]} 22... Bxd4 {[%clk 0:01:45.6]} 23. Rxd1 {[%clk 0:00:58.7]}
23... Re8 {[%clk 0:01:44.3]} 24. Rxd4 {[%clk 0:00:58.6]} 24... Rxe7 {[%clk
0:01:45.5]} 25. a4 {[%clk 0:00:52.2]} 25... Rc7 {[%clk 0:01:44]} 26. Kh2 {[%clk
0:00:46.3]} 26... Kf8 {[%clk 0:01:43.6]} 27. Kg3 {[%clk 0:00:46.8]} 27... Ke7
{[%clk 0:01:44.6]} 28. Bd3 {[%clk 0:00:43.3]} 28... Rc3 {[%clk 0:01:41.5]} 29.
Kf4 {[%clk 0:00:41.8]} 29... h6 {[%clk 0:01:25]} 30. h4 {[%clk 0:00:34.5]} 30...
Rb3 {[%clk 0:01:22]} 31. Be4 {[%clk 0:00:30.2]} 31... a5 {[%clk 0:01:08.2]} 32.
g4 {[%clk 0:00:24.1]} 32... b6 {[%clk 0:01:06.8]} 33. Bc6 {[%clk 0:00:21.3]}
33... Rb4 {[%clk 0:00:51.2]} 34. Re4 {[%clk 0:00:07.5]} 34... Kd6 {[%clk
0:00:45.2]} 35. Be8 {[%clk 0:00:05.8]} 35... Bd5 {[%clk 0:00:37.1]} 36. Rxb4
{[%clk 0:00:05.3]} 36... axb4 {[%clk 0:00:39]} 37. Ke3 {[%clk 0:00:06.7]} 37...
g5 {[%clk 0:00:37.1]} 38. hxg5 {[%clk 0:00:07.4]} 38... hxg5 {[%clk 0:00:39]}
39. Kd4 {[%clk 0:00:07.6]} 39... f6 {[%clk 0:00:38.2]} 40. Bg6 {[%clk
0:00:08.3]} 40... Be6 {[%clk 0:00:35.9]} 41. f3 {[%clk 0:00:05.4]} 41... Bd5
{[%clk 0:00:35.8]} 42. Ke3 {[%clk 0:00:03]} 42... Kc5 {[%clk 0:00:31.8]} 43. Bd3
{[%clk 0:00:03.6]} 43... b3 {[%clk 0:00:32.1]} 44. f4 {[%clk 0:00:04.7]} 44...
Bc6 {[%clk 0:00:30]} 45. fxg5 {[%clk 0:00:02.1]} 45... fxg5 {[%clk 0:00:31]} 46.
Bb1 {[%clk 0:00:03.9]} 46... Bxa4 {[%clk 0:00:31]} 47. Ke4 {[%clk 0:00:05.6]}
47... Bd7 {[%clk 0:00:32.2]} 48. Kd3 {[%clk 0:00:05.5]} 48... Kb4 {[%clk
0:00:32.4]} 0-1

[Event "*** Titled Tuesday Blitz"]
[Site "Chess.com"]
[Date "2020.02.04"]
[Round "8"]
[White "Carnivoras"]
[Black "PowerThinking2650"]
[Result "0-1"]
[WhiteElo "2534"]
[BlackElo "2410"]
[TimeControl "180+2"]
[EndTime "14:54:02 PST"]
[Termination "PowerThinking2650 won by resignation"]

1. d4 {[%clk 0:03:00.5]} 1... Nf6 {[%clk 0:03:00.4]} 2. Nf3 {[%clk 0:03:01.8]}
2... g6 {[%clk 0:03:01.6]} 3. Bf4 {[%clk 0:03:02.8]} 3... Bg7 {[%clk 0:03:02.6]}
4. e3 {[%clk 0:03:03.8]} 4... O-O {[%clk 0:03:03.1]} 5. Be2 {[%clk 0:03:04.4]}
5... d6 {[%clk 0:03:03.6]} 6. O-O {[%clk 0:03:06.3]} 6... Nh5 {[%clk 0:03:01.7]}
7. Bg5 {[%clk 0:03:06.2]} 7... h6 {[%clk 0:03:01.6]} 8. Bh4 {[%clk 0:03:07.2]}
8... g5 {[%clk 0:02:57.8]} 9. Nfd2 {[%clk 0:03:07.1]} 9... gxh4 {[%clk
0:02:53.7]} 10. Bxh5 {[%clk 0:03:07]} 10... c5 {[%clk 0:02:41.9]} 11. c3 {[%clk
0:03:01.4]} 11... Nc6 {[%clk 0:02:38.8]} 12. d5 {[%clk 0:02:59.4]} 12... Ne5
{[%clk 0:02:37]} 13. f4 {[%clk 0:02:56.5]} 13... Ng6 {[%clk 0:02:19]} 14. h3
{[%clk 0:02:51.8]} 14... b5 {[%clk 0:02:16.6]} 15. Nf3 {[%clk 0:02:51.3]} 15...
b4 {[%clk 0:02:09.4]} 16. Bxg6 {[%clk 0:02:48.4]} 16... fxg6 {[%clk 0:02:09.6]}
17. Nxh4 {[%clk 0:02:49.7]} 17... Qe8 {[%clk 0:01:48]} 18. Nf3 {[%clk
0:02:36.2]} 18... Rb8 {[%clk 0:01:40.8]} 19. Qc2 {[%clk 0:02:32.5]} 19... Qf7
{[%clk 0:01:16.3]} 20. c4 {[%clk 0:02:25.1]} 20... Qf6 {[%clk 0:01:13.3]} 21.
Rf2 {[%clk 0:02:25.1]} 21... e6 {[%clk 0:00:53.9]} 22. Nbd2 {[%clk 0:02:14.7]}
22... Qxb2 {[%clk 0:00:46.5]} 23. Qxb2 {[%clk 0:02:12.3]} 23... Bxb2 {[%clk
0:00:47.2]} 24. Rb1 {[%clk 0:02:13]} 24... Bf6 {[%clk 0:00:43.6]} 25. Ne4 {[%clk
0:02:13.5]} 25... Be7 {[%clk 0:00:44.2]} 26. Nfd2 {[%clk 0:01:59.5]} 26... exd5
{[%clk 0:00:41.3]} 27. cxd5 {[%clk 0:01:59.4]} 27... Ba6 {[%clk 0:00:31.6]} 28.
Rc1 {[%clk 0:01:57.3]} 28... Bd3 {[%clk 0:00:28]} 29. Ng3 {[%clk 0:01:47.4]}
29... Bh4 {[%clk 0:00:26.4]} 30. Rf3 {[%clk 0:01:47.5]} 30... a5 {[%clk
0:00:22.4]} 31. e4 {[%clk 0:01:44]} 31... Bb5 {[%clk 0:00:20.2]} 32. Ngf1 {[%clk
0:01:40.3]} 32... a4 {[%clk 0:00:17.8]} 33. Ne3 {[%clk 0:01:40.3]} 33... Bf6
{[%clk 0:00:17.8]} 34. Nec4 {[%clk 0:01:39.6]} 34... Bd4+ {[%clk 0:00:17]} 35.
Kh2 {[%clk 0:01:39.8]} 35... Rfd8 {[%clk 0:00:17.7]} 36. Rd3 {[%clk 0:01:34.6]}
36... Kf7 {[%clk 0:00:15.1]} 37. Nf3 {[%clk 0:01:35]} 37... Bf6 {[%clk
0:00:15.4]} 38. e5 {[%clk 0:01:36.1]} 38... Bxc4 {[%clk 0:00:16.2]} 39. Rxc4
{[%clk 0:01:35.9]} 39... Be7 {[%clk 0:00:17.3]} 40. exd6 {[%clk 0:01:27.9]}
40... Bxd6 {[%clk 0:00:18.1]} 41. Ne5+ {[%clk 0:01:28.8]} 41... Bxe5 {[%clk
0:00:16.2]} 42. fxe5 {[%clk 0:01:28.7]} 42... b3 {[%clk 0:00:17.2]} 43. axb3
{[%clk 0:01:25.2]} 43... axb3 {[%clk 0:00:18.3]} 44. e6+ {[%clk 0:00:51.5]}
44... Ke7 {[%clk 0:00:18.5]} 45. Rc1 {[%clk 0:00:27.9]} 45... b2 {[%clk
0:00:18.1]} 46. Rb1 {[%clk 0:00:28]} 46... c4 {[%clk 0:00:15.4]} 47. Rc3 {[%clk
0:00:28.9]} 47... Rb4 {[%clk 0:00:14.1]} 48. Rc2 {[%clk 0:00:26.1]} 48... Rxd5
{[%clk 0:00:13.4]} 49. Rbxb2 {[%clk 0:00:26.1]} 49... Rxb2 {[%clk 0:00:14.5]}
50. Rxb2 {[%clk 0:00:27.3]} 50... c3 {[%clk 0:00:15.7]} 51. Rb7+ {[%clk
0:00:24.4]} 51... Kxe6 {[%clk 0:00:14.9]} 52. Rg7 {[%clk 0:00:24.8]} 52... Rc5
{[%clk 0:00:14.1]} 0-1

[Event "*** Titled Tuesday Blitz"]
[Site "Chess.com"]
[Date "2020.02.04"]
[Round "8"]
[White "sergiochess83"]
[Black "Tayson_7"]
[Result "1-0"]
[WhiteElo "2964"]
[BlackElo "2703"]
[TimeControl "180+2"]
[EndTime "14:54:18 PST"]
[Termination "sergiochess83 won by checkmate"]

1. e4 {[%clk 0:03:01.9]} 1... c5 {[%clk 0:03:01.1]} 2. Nf3 {[%clk 0:03:02.7]}
2... d6 {[%clk 0:03:02.7]} 3. d4 {[%clk 0:03:03]} 3... cxd4 {[%clk 0:03:04.6]}
4. Nxd4 {[%clk 0:03:04.6]} 4... Nf6 {[%clk 0:03:06.1]} 5. Nc3 {[%clk 0:03:05.8]}
5... a6 {[%clk 0:03:07.6]} 6. a4 {[%clk 0:03:06.4]} 6... e5 {[%clk 0:02:56.8]}
7. Nf3 {[%clk 0:03:07.1]} 7... Be7 {[%clk 0:02:52.1]} 8. Bc4 {[%clk 0:03:07.9]}
8... Be6 {[%clk 0:02:51.7]} 9. Qe2 {[%clk 0:03:03]} 9... Bxc4 {[%clk 0:02:42.7]}
10. Qxc4 {[%clk 0:03:03.6]} 10... Nbd7 {[%clk 0:02:42.7]} 11. O-O {[%clk
0:03:01.5]} 11... Rc8 {[%clk 0:02:41.8]} 12. Qe2 {[%clk 0:02:58.9]} 12... O-O
{[%clk 0:02:40.8]} 13. Rd1 {[%clk 0:02:57.9]} 13... h6 {[%clk 0:02:35.2]} 14.
Nh4 {[%clk 0:02:54.3]} 14... Re8 {[%clk 0:02:19.5]} 15. Nf5 {[%clk 0:02:54.1]}
15... Rc6 {[%clk 0:02:20.9]} 16. Bxh6 {[%clk 0:02:36.6]} 16... gxh6 {[%clk
0:02:15.6]} 17. Nxh6+ {[%clk 0:02:36.9]} 17... Kf8 {[%clk 0:02:11.6]} 18. Nf5
{[%clk 0:01:43.3]} 18... Nc5 {[%clk 0:01:37]} 19. Nd5 {[%clk 0:01:28.3]} 19...
Ng8 {[%clk 0:01:20.5]} 20. Ra3 {[%clk 0:01:17.6]} 20... Bg5 {[%clk 0:01:16.9]}
21. Rh3 {[%clk 0:01:05.4]} 21... Nd7 {[%clk 0:00:56.7]} 22. Rh8 {[%clk
0:00:57.9]} 22... Re6 {[%clk 0:00:51.4]} 23. h4 {[%clk 0:00:51.1]} 23... Bf6
{[%clk 0:00:36]} 24. Qh5 {[%clk 0:00:37.4]} 24... Bxh8 {[%clk 0:00:30.2]} 25.
Qxh8 {[%clk 0:00:39.3]} 25... Rg6 {[%clk 0:00:31.4]} 26. h5 {[%clk 0:00:39.4]}
26... Rg5 {[%clk 0:00:28.6]} 27. h6 {[%clk 0:00:39.1]} 27... Nf6 {[%clk
0:00:29.3]} 28. h7 {[%clk 0:00:36.7]} 28... Nxh7 {[%clk 0:00:30.4]} 29. Qxh7
{[%clk 0:00:36.2]} 29... Rxc2 {[%clk 0:00:25.6]} 30. Qh4 {[%clk 0:00:29.6]}
30... Rc8 {[%clk 0:00:18.1]} 31. Nde7 {[%clk 0:00:25.8]} 31... Rxf5 {[%clk
0:00:15.9]} 32. Nxf5 {[%clk 0:00:27.3]} 32... Qxh4 {[%clk 0:00:17.3]} 33. Nxh4
{[%clk 0:00:28.2]} 33... Nf6 {[%clk 0:00:12.1]} 34. f3 {[%clk 0:00:29.6]} 34...
d5 {[%clk 0:00:11.9]} 35. exd5 {[%clk 0:00:28.7]} 35... Rc4 {[%clk 0:00:13.5]}
36. Nf5 {[%clk 0:00:28.3]} 36... Rxa4 {[%clk 0:00:15]} 37. Rc1 {[%clk
0:00:26.9]} 37... Ke8 {[%clk 0:00:14.5]} 38. Rc7 {[%clk 0:00:26.7]} 38... Nxd5
{[%clk 0:00:13.8]} 39. Rxb7 {[%clk 0:00:26.8]} 39... Rb4 {[%clk 0:00:15.3]} 40.
Nd6+ {[%clk 0:00:25.9]} 40... Kf8 {[%clk 0:00:12.8]} 41. Rxf7+ {[%clk
0:00:25.8]} 41... Kg8 {[%clk 0:00:14.2]} 42. Rb7 {[%clk 0:00:25.1]} 42... Rd4
{[%clk 0:00:09.6]} 43. g4 {[%clk 0:00:21.9]} 43... Nf4 {[%clk 0:00:08.1]} 44.
Ne4 {[%clk 0:00:20.7]} 44... Rd1+ {[%clk 0:00:05.2]} 45. Kf2 {[%clk 0:00:20.3]}
45... Rc1 {[%clk 0:00:06.7]} 46. Nf6+ {[%clk 0:00:18.4]} 46... Kf8 {[%clk
0:00:07.9]} 47. Ra7 {[%clk 0:00:17.6]} 47... Rc2+ {[%clk 0:00:08.1]} 48. Kg3
{[%clk 0:00:19]} 48... Ne6 {[%clk 0:00:06.4]} 49. Nd7+ {[%clk 0:00:16.9]} 49...
Ke7 {[%clk 0:00:07]} 50. Nxe5+ {[%clk 0:00:18.8]} 50... Kf6 {[%clk 0:00:08.4]}
51. f4 {[%clk 0:00:15]} 51... Rxb2 {[%clk 0:00:08.7]} 52. Rf7# {[%clk
0:00:15.2]} 1-0

[Event "*** Titled Tuesday Blitz"]
[Site "Chess.com"]
[Date "2020.02.04"]
[Round "8"]
[White "2165149677570"]
[Black "Eloist"]
[Result "1/2-1/2"]
[WhiteElo "2288"]
[BlackElo "2235"]
[TimeControl "180+2"]
[EndTime "14:54:43 PST"]
[Termination "Game drawn by agreement"]

1. d4 {[%clk 0:03:01.9]} 1... e6 {[%clk 0:03:00]} 2. e4 {[%clk 0:03:02.4]} 2...
d5 {[%clk 0:02:59.8]} 3. Nd2 {[%clk 0:03:04]} 3... Nf6 {[%clk 0:03:00]} 4. e5
{[%clk 0:03:05.2]} 4... Nfd7 {[%clk 0:03:00.9]} 5. f4 {[%clk 0:03:06.8]} 5... c5
{[%clk 0:03:01.8]} 6. c3 {[%clk 0:03:08.3]} 6... Nc6 {[%clk 0:03:02.4]} 7. Ndf3
{[%clk 0:03:09.9]} 7... Qb6 {[%clk 0:02:58.1]} 8. g3 {[%clk 0:03:11]} 8... cxd4
{[%clk 0:02:57.9]} 9. cxd4 {[%clk 0:03:12.9]} 9... Bb4+ {[%clk 0:02:45.8]} 10.
Kf2 {[%clk 0:03:13.3]} 10... f6 {[%clk 0:02:46.7]} 11. Kg2 {[%clk 0:03:14.1]}
11... O-O {[%clk 0:02:42.1]} 12. Bd3 {[%clk 0:03:14.3]} 12... Rf7 {[%clk
0:02:27.6]} 13. Ne2 {[%clk 0:03:10]} 13... Nf8 {[%clk 0:02:27.8]} 14. h4 {[%clk
0:02:57.3]} 14... Bd7 {[%clk 0:02:26.1]} 15. g4 {[%clk 0:02:48.8]} 15... Rc8
{[%clk 0:02:16.3]} 16. Be3 {[%clk 0:02:28.4]} 16... Be7 {[%clk 0:02:09.2]} 17.
Rb1 {[%clk 0:02:04.1]} 17... Nb4 {[%clk 0:02:07.9]} 18. f5 {[%clk 0:01:55.6]}
18... Nxd3 {[%clk 0:02:03.1]} 19. Qxd3 {[%clk 0:01:57.5]} 19... Bb5 {[%clk
0:02:01.7]} 20. Qd2 {[%clk 0:01:58.9]} 20... exf5 {[%clk 0:01:44.5]} 21. gxf5
{[%clk 0:01:54.2]} 21... Qa6 {[%clk 0:01:26.9]} 22. Nf4 {[%clk 0:01:51.4]} 22...
fxe5 {[%clk 0:01:23.1]} 23. dxe5 {[%clk 0:01:32.5]} 23... Rxf5 {[%clk
0:01:15.9]} 24. Qxd5+ {[%clk 0:01:33.6]} 24... Kh8 {[%clk 0:01:16.2]} 25. Qe4
{[%clk 0:01:19.6]} 25... g6 {[%clk 0:00:46.7]} 26. Nd4 {[%clk 0:01:02.4]} 26...
Bc6 {[%clk 0:00:37.9]} 27. Nxc6 {[%clk 0:01:03.7]} 27... Qxc6 {[%clk 0:00:38.7]}
28. Qxc6 {[%clk 0:01:05.3]} 28... Rxc6 {[%clk 0:00:39.7]} 29. Rbc1 {[%clk
0:01:07.2]} 29... Kg8 {[%clk 0:00:33.5]} 30. Rxc6 {[%clk 0:01:06.1]} 30... bxc6
{[%clk 0:00:33.8]} 31. Nd3 {[%clk 0:00:54.3]} 31... Nd7 {[%clk 0:00:26.7]} 32.
e6 {[%clk 0:00:44.9]} 32... Ne5 {[%clk 0:00:26.1]} 33. Nxe5 {[%clk 0:00:35.7]}
33... Rxe5 {[%clk 0:00:28]} 34. Bxa7 {[%clk 0:00:36.9]} 34... Rxe6 {[%clk
0:00:29]} 35. Kf3 {[%clk 0:00:28.4]} 35... c5 {[%clk 0:00:27.1]} 36. a3 {[%clk
0:00:19.3]} 36... Kf7 {[%clk 0:00:22.9]} 37. h5 {[%clk 0:00:18.7]} 37... g5
{[%clk 0:00:20.5]} 38. Rc1 {[%clk 0:00:19.8]} 38... Re5 {[%clk 0:00:18.5]} 39.
Bb8 {[%clk 0:00:16.8]} 39... Rf5+ {[%clk 0:00:18.4]} 40. Ke4 {[%clk 0:00:18.2]}
40... Ke6 {[%clk 0:00:18.3]} 41. h6 {[%clk 0:00:19.8]} 41... Rf2 {[%clk
0:00:18.6]} 42. b4 {[%clk 0:00:13.9]} 42... cxb4 {[%clk 0:00:16.7]} 43. axb4
{[%clk 0:00:15]} 43... Rb2 {[%clk 0:00:17.4]} 44. Rc7 {[%clk 0:00:15.9]} 44...
Rxb4+ {[%clk 0:00:17.9]} 45. Kf3 {[%clk 0:00:15.2]} 45... Rxb8 {[%clk
0:00:18.5]} 46. Rc6+ {[%clk 0:00:16.3]} 46... Bd6 {[%clk 0:00:18.8]} 47. Kg4
{[%clk 0:00:17]} 47... Rb5 {[%clk 0:00:19.7]} 48. Ra6 {[%clk 0:00:17.1]} 48...
Rc5 {[%clk 0:00:20.6]} 49. Rb6 {[%clk 0:00:18.2]} 49... Kd7 {[%clk 0:00:19.7]}
50. Rb7+ {[%clk 0:00:15.9]} 50... Bc7 {[%clk 0:00:20.2]} 51. Ra7 {[%clk
0:00:15.8]} 51... Kc6 {[%clk 0:00:21.2]} 52. Ra6+ {[%clk 0:00:16.3]} 52... Bb6
{[%clk 0:00:21.9]} 53. Ra8 {[%clk 0:00:17.9]} 53... Rd5 {[%clk 0:00:21.5]} 54.
Rh8 {[%clk 0:00:18]} 54... Rd7 {[%clk 0:00:22.4]} 55. Kxg5 {[%clk 0:00:19.3]}
55... Kd5 {[%clk 0:00:22.2]} 56. Rg8 {[%clk 0:00:19]} 56... Be3+ {[%clk
0:00:22.3]} 57. Kh5 {[%clk 0:00:19.7]} 57... Re7 {[%clk 0:00:22.4]} 58. Rg7
{[%clk 0:00:20.2]} 58... Ke6 {[%clk 0:00:23.4]} 59. Rxe7+ {[%clk 0:00:19.3]}
59... Kxe7 {[%clk 0:00:24.3]} 60. Kg4 {[%clk 0:00:19.6]} 60... Kf7 {[%clk
0:00:25.3]} 61. Kh3 {[%clk 0:00:20.9]} 61... Kf6 {[%clk 0:00:26.2]} 62. Kg2
{[%clk 0:00:22.8]} 62... Bxh6 {[%clk 0:00:27.3]} 63. Kh1 {[%clk 0:00:24.7]}
63... Bg5 {[%clk 0:00:28.4]} 64. Kg2 {[%clk 0:00:26.6]} 64... h5 {[%clk
0:00:29.3]} 65. Kh1 {[%clk 0:00:28.5]} 65... h4 {[%clk 0:00:28.7]} 66. Kg2
{[%clk 0:00:30.4]} 66... Kf5 {[%clk 0:00:29.8]} 67. Kh1 {[%clk 0:00:32.3]} 67...
Kg4 {[%clk 0:00:30.9]} 68. Kg2 {[%clk 0:00:34.2]} 1/2-1/2

[Event "*** Titled Tuesday Blitz"]
[Site "Chess.com"]
[Date "2020.02.04"]
[Round "8"]
[White "FrogMist"]
[Black "MartinCerveny"]
[Result "1-0"]
[WhiteElo "2411"]
[BlackElo "2560"]
[TimeControl "180+2"]
[EndTime "14:54:45 PST"]
[Termination "FrogMist won by resignation"]

1. e3 {[%clk 0:03:01.8]} 1... d5 {[%clk 0:02:57.5]} 2. Nf3 {[%clk 0:03:01.4]}
2... Nf6 {[%clk 0:02:57.3]} 3. b3 {[%clk 0:03:00]} 3... Bg4 {[%clk 0:02:55.1]}
4. Bb2 {[%clk 0:02:59]} 4... Nbd7 {[%clk 0:02:54.8]} 5. Be2 {[%clk 0:02:59.7]}
5... e6 {[%clk 0:02:55.4]} 6. d3 {[%clk 0:02:57.6]} 6... c5 {[%clk 0:02:53.6]}
7. Nbd2 {[%clk 0:02:56.7]} 7... a5 {[%clk 0:02:53.4]} 8. a4 {[%clk 0:02:55]}
8... Be7 {[%clk 0:02:49.4]} 9. h3 {[%clk 0:02:55.9]} 9... Bh5 {[%clk 0:02:49.9]}
10. Ne5 {[%clk 0:02:37.4]} 10... Bxe2 {[%clk 0:02:48.6]} 11. Qxe2 {[%clk
0:02:37.7]} 11... O-O {[%clk 0:02:47.8]} 12. f4 {[%clk 0:02:37.3]} 12... Nxe5
{[%clk 0:02:38.6]} 13. Bxe5 {[%clk 0:02:29.9]} 13... Nd7 {[%clk 0:02:38.4]} 14.
Nf3 {[%clk 0:02:20.3]} 14... f6 {[%clk 0:02:32.6]} 15. Bb2 {[%clk 0:02:20.8]}
15... Qc7 {[%clk 0:02:27.3]} 16. O-O {[%clk 0:02:20.4]} 16... Rfd8 {[%clk
0:02:23.3]} 17. Rae1 {[%clk 0:02:11.6]} 17... Rab8 {[%clk 0:02:19.2]} 18. e4
{[%clk 0:02:09.8]} 18... d4 {[%clk 0:02:18.6]} 19. Bc1 {[%clk 0:02:09.4]} 19...
b5 {[%clk 0:02:18.1]} 20. axb5 {[%clk 0:02:11.3]} 20... Rxb5 {[%clk 0:02:18.3]}
21. Nd2 {[%clk 0:02:01.4]} 21... a4 {[%clk 0:02:13.6]} 22. bxa4 {[%clk
0:02:01.8]} 22... Rb4 {[%clk 0:02:11.8]} 23. Nc4 {[%clk 0:02:00.2]} 23... Nb6
{[%clk 0:02:12]} 24. Bd2 {[%clk 0:01:53.7]} 24... Rxa4 {[%clk 0:02:06.2]} 25.
Ba5 {[%clk 0:01:53.9]} 25... Rxa5 {[%clk 0:02:00.6]} 26. Nxa5 {[%clk 0:01:55.8]}
26... Ra8 {[%clk 0:01:55.3]} 27. Ra1 {[%clk 0:01:54.3]} 27... Qc8 {[%clk
0:01:47.1]} 28. Nb3 {[%clk 0:01:52]} 28... Na4 {[%clk 0:01:45.9]} 29. Qf3 {[%clk
0:01:48]} 29... Nc3 {[%clk 0:01:32.4]} 30. e5 {[%clk 0:01:46]} 30... Rb8 {[%clk
0:01:33.1]} 31. Ra7 {[%clk 0:01:43.5]} 31... Nd5 {[%clk 0:01:31.5]} 32. Rfa1
{[%clk 0:01:44.2]} 32... f5 {[%clk 0:01:28.9]} 33. Kh2 {[%clk 0:01:36.8]} 33...
Qe8 {[%clk 0:01:24]} 34. Nd2 {[%clk 0:01:36]} 34... g5 {[%clk 0:01:15.6]} 35.
fxg5 {[%clk 0:01:33.8]} 35... Bxg5 {[%clk 0:01:16.2]} 36. Nc4 {[%clk 0:01:34.6]}
36... Qg6 {[%clk 0:01:10.2]} 37. Ra8 {[%clk 0:01:31.8]} 37... Rxa8 {[%clk
0:01:11.1]} 38. Rxa8+ {[%clk 0:01:33.7]} 38... Kg7 {[%clk 0:01:12.4]} 39. Ra7+
{[%clk 0:01:32.7]} 39... Kh6 {[%clk 0:01:10.5]} 40. Nd6 {[%clk 0:01:27.8]} 40...
Be7 {[%clk 0:00:58.3]} 41. Nc8 {[%clk 0:01:17.2]} 41... Bg5 {[%clk 0:00:56]} 42.
Nd6 {[%clk 0:01:16.8]} 42... Be7 {[%clk 0:00:54.9]} 43. Qg3 {[%clk 0:01:06.3]}
43... f4 {[%clk 0:00:45.4]} 44. Qf3 {[%clk 0:01:00.4]} 44... Qg7 {[%clk
0:00:22.4]} 45. Qg4 {[%clk 0:00:45.2]} 45... Qxg4 {[%clk 0:00:22.3]} 46. hxg4
{[%clk 0:00:47.1]} 46... Kg5 {[%clk 0:00:23.6]} 47. Nc8 {[%clk 0:00:42.5]} 47...
Bf8 {[%clk 0:00:23.9]} 48. Rxh7 {[%clk 0:00:39.8]} 48... Ne3 {[%clk 0:00:21.4]}
49. Kh3 {[%clk 0:00:32.6]} 49... Nxc2 {[%clk 0:00:21]} 50. Rf7 {[%clk
0:00:28.5]} 50... Bh6 {[%clk 0:00:20.7]} 51. Nd6 {[%clk 0:00:26.2]} 51... Ne1
{[%clk 0:00:19.1]} 52. Rf6 {[%clk 0:00:24.1]} 1-0

[Event "*** Titled Tuesday Blitz"]
[Site "Chess.com"]
[Date "2020.02.04"]
[Round "8"]
[White "cottage_cheese"]
[Black "politeplayer"]
[Result "1/2-1/2"]
[WhiteElo "2273"]
[BlackElo "2154"]
[TimeControl "180+2"]
[EndTime "14:54:48 PST"]
[Termination "Game drawn by repetition"]

1. e4 {[%clk 0:02:59.9]} 1... e5 {[%clk 0:02:59.6]} 2. Nf3 {[%clk 0:02:59.4]}
2... Nc6 {[%clk 0:03:00.4]} 3. Bb5 {[%clk 0:03:00.1]} 3... Nf6 {[%clk
0:03:01.1]} 4. d3 {[%clk 0:02:55.4]} 4... d6 {[%clk 0:03:01.4]} 5. Bxc6+ {[%clk
0:02:49.4]} 5... bxc6 {[%clk 0:03:00.5]} 6. O-O {[%clk 0:02:47.6]} 6... Bg4
{[%clk 0:02:59.8]} 7. Nbd2 {[%clk 0:02:47.4]} 7... Be7 {[%clk 0:02:57.9]} 8. b3
{[%clk 0:02:42.5]} 8... O-O {[%clk 0:02:57.3]} 9. Bb2 {[%clk 0:02:43]} 9... c5
{[%clk 0:02:53.2]} 10. h3 {[%clk 0:02:43.2]} 10... Bh5 {[%clk 0:02:52.1]} 11. g4
{[%clk 0:02:32.1]} 11... Bg6 {[%clk 0:02:46.7]} 12. Nh4 {[%clk 0:02:16.6]} 12...
h5 {[%clk 0:02:23.5]} 13. Nf5 {[%clk 0:01:35]} 13... Nh7 {[%clk 0:02:03.5]} 14.
Kh2 {[%clk 0:01:01.4]} 14... Bg5 {[%clk 0:02:01.7]} 15. Nf3 {[%clk 0:00:26]}
15... Bf4+ {[%clk 0:01:51.9]} 16. Kg2 {[%clk 0:00:26.4]} 16... Ng5 {[%clk
0:01:38.1]} 17. Bc1 {[%clk 0:00:18.4]} 17... Bxf5 {[%clk 0:00:54.7]} 18. gxf5
{[%clk 0:00:12.9]} 18... Nxf3 {[%clk 0:00:54.2]} 19. Qxf3 {[%clk 0:00:11.8]}
19... Qg5+ {[%clk 0:00:54.9]} 20. Kh1 {[%clk 0:00:12.6]} 20... Bxc1 {[%clk
0:00:47.5]} 21. Raxc1 {[%clk 0:00:12.6]} 21... g6 {[%clk 0:00:45.3]} 22. Rg1
{[%clk 0:00:13]} 22... Qh6 {[%clk 0:00:43.1]} 23. Rcf1 {[%clk 0:00:06.8]} 23...
Kh7 {[%clk 0:00:42.7]} 24. f6 {[%clk 0:00:06]} 24... Rg8 {[%clk 0:00:42.1]} 25.
Qe3 {[%clk 0:00:05.5]} 25... g5 {[%clk 0:00:39.2]} 26. Re1 {[%clk 0:00:05.5]}
26... a5 {[%clk 0:00:39]} 27. Qf3 {[%clk 0:00:06.1]} 27... Rg6 {[%clk 0:00:38]}
28. Qf5 {[%clk 0:00:06.4]} 28... Re8 {[%clk 0:00:33.4]} 29. Qd7 {[%clk
0:00:05.7]} 29... Qf8 {[%clk 0:00:29.4]} 30. Rg2 {[%clk 0:00:05.2]} 30... g4
{[%clk 0:00:28.4]} 31. hxg4 {[%clk 0:00:05.5]} 31... hxg4 {[%clk 0:00:24]} 32.
Rh2+ {[%clk 0:00:06.2]} 32... Rh6 {[%clk 0:00:24.1]} 33. Rxh6+ {[%clk
0:00:05.6]} 33... Qxh6+ {[%clk 0:00:24.2]} 34. Kg2 {[%clk 0:00:07.3]} 34... Qh3+
{[%clk 0:00:23]} 35. Kg1 {[%clk 0:00:06.7]} 35... Qh5 {[%clk 0:00:19.7]} 36. Kg2
{[%clk 0:00:06.2]} 36... Qh3+ {[%clk 0:00:19.4]} 37. Kg1 {[%clk 0:00:07]} 37...
Qh5 {[%clk 0:00:19]} 38. Re3 {[%clk 0:00:07.1]} 38... Re6 {[%clk 0:00:18.2]} 39.
Qd8 {[%clk 0:00:06.6]} 39... Qg5 {[%clk 0:00:15]} 40. Rg3 {[%clk 0:00:06.4]}
40... Rxf6 {[%clk 0:00:15.2]} 41. Qf8 {[%clk 0:00:06.2]} 41... Rf3 {[%clk
0:00:14.5]} 42. Kg2 {[%clk 0:00:05.6]} 42... Rxg3+ {[%clk 0:00:15.5]} 43. Kxg3
{[%clk 0:00:05]} 43... Qf4+ {[%clk 0:00:16]} 44. Kg2 {[%clk 0:00:06.1]} 44...
Qf3+ {[%clk 0:00:16.9]} 45. Kg1 {[%clk 0:00:06.9]} 45... Qd1+ {[%clk 0:00:17.1]}
46. Kg2 {[%clk 0:00:08]} 46... Qf3+ {[%clk 0:00:17.4]} 47. Kg1 {[%clk
0:00:09.4]} 47... g3 {[%clk 0:00:18.3]} 48. fxg3 {[%clk 0:00:09]} 48... Qxg3+
{[%clk 0:00:19.1]} 49. Kf1 {[%clk 0:00:10.9]} 49... Qf3+ {[%clk 0:00:18.3]} 50.
Ke1 {[%clk 0:00:12]} 50... Qe3+ {[%clk 0:00:18.3]} 51. Kd1 {[%clk 0:00:13.2]}
51... Qg1+ {[%clk 0:00:19.1]} 52. Kd2 {[%clk 0:00:14.3]} 52... Qf2+ {[%clk
0:00:19.9]} 53. Kc1 {[%clk 0:00:14.5]} 53... Qe3+ {[%clk 0:00:19.2]} 54. Kb2
{[%clk 0:00:15.2]} 54... Qd4+ {[%clk 0:00:20.1]} 55. Kb1 {[%clk 0:00:16.1]}
55... Qg1+ {[%clk 0:00:20.4]} 56. Kb2 {[%clk 0:00:17.2]} 56... Qd4+ {[%clk
0:00:21.3]} 57. Kb1 {[%clk 0:00:17.4]} 57... Qg1+ {[%clk 0:00:18.9]} 58. Kb2
{[%clk 0:00:18.2]} 58... Qd4+ {[%clk 0:00:20.4]} 1/2-1/2